bitfinex-derivatives/quotes_SOLF0:USTF0_20251026
["timestamp","ask_amount","ask_price","bid_price","bid_amount"]
[1761477561731,6.28280187,195.32,195.26,2.62]
[1761477561931,2.51,195.32,195.26,2.62]
[1761477563027,6.2830262,195.32,195.26,2.62]
[1761477563223,2.51,195.32,195.26,2.62]
[1761477564130,6.2836138,195.32,195.26,2.62]
[1761477564333,2.51,195.32,195.26,2.62]
[1761477565028,6.283919,195.32,195.26,2.62]
[1761477565229,2.51,195.32,195.26,2.62]
[1761477565426,2.51,195.39,195.28,9.54855192]
[1761477565626,2.51,195.39,195.31,2.7]
[1761477565828,2.51,195.39,195.32,62.12]
[1761477566026,2.51,195.39,195.32,6.35562715]
[1761477566227,2.51,195.39,195.31,71.17562715]
[1761477566428,2.51,195.39,195.32,2.7]
[1761477571040,2.51,195.39,195.32,64.8]
[1761477572337,2.51,195.39,195.32,2.7]
[1761477572536,2.51,195.39,195.3,62.08]
[1761477572741,2.51,195.39,195.29,2.7]
[1761477572941,2.51,195.39,195.29,64.8]
[1761477577047,2.51,195.39,195.29,2.7]
[1761477578453,2.51,195.38,195.29,2.7]
[1761477579052,2.51,195.36,195.24,9.09562715]
[1761477579246,2.51,195.34,195.24,2.74]
[1761477579549,2.51,195.34,195.24,21.3]
[1761477579745,2.51,195.34,195.25,2.74]
[1761477600359,2.51,195.34,195.18,2.74]
[1761477600664,2.51,195.33,195.18,2.74]
[1761477600967,2.51,195.32,195.18,2.74]
[1761477601167,7.29662795,195.32,195.18,2.74]
[1761477601365,2.51,195.29,195.18,2.74]
[1761477601565,2.52,195.28,195.18,2.74]
[1761477602667,2.52,195.27,195.18,2.74]
[1761477603771,2.52,195.26,195.18,2.74]
[1761477605068,2.52,195.25,195.18,2.74]
[1761477606373,2.52,195.32,195.18,2.74]
[1761477608160,2.52,195.32,195.16,106.38458059]
[1761477608161,2.52,195.32,195.2,2.68]
[1761477610367,2.51,195.31,195.2,2.68]
[1761477610674,2.51,195.3,195.2,2.68]
[1761477611868,2.51,195.29,195.2,2.68]
[1761477612073,2.51,195.28,195.2,2.68]
[1761477613678,2.51,195.27,195.2,2.68]
[1761477623685,4.78662795,195.32,195.2,2.68]
[1761477623885,2.51,195.32,195.2,2.68]
[1761477624087,2.51,195.36,195.21,9.08178918]
[1761477624386,2.51,195.36,195.24,2.74]
[1761477624584,2.51,195.36,195.26,2.74]
[1761477624782,2.51,195.36,195.26,62.18]
[1761477624978,2.51,195.36,195.27,2.74]
[1761477625392,2.51,195.39,195.27,2.74]
[1761477625688,2.51,195.42,195.28,2.74]
[1761477625889,2.51,195.42,195.29,2.74]
[1761477626590,2.51,195.42,195.31,2.74]
[1761477631690,2.51,195.42,195.32,62.0]
[1761477631991,2.51,195.42,195.33,2.74]
[1761477637695,2.51,195.42,195.27,2.74]
[1761477637890,2.51,195.42,195.29,2.74]
[1761477644101,2.51,195.42,195.31,2.79]
[1761477644898,2.51,195.46,195.31,2.79]
[1761477647404,2.51,195.46,195.33,2.79]
[1761477647604,2.51,195.46,195.33,62.12]
[1761477647806,2.51,195.46,195.34,2.79]
[1761477649408,2.51,195.51,195.34,2.79]
[1761477649805,2.51,195.58,195.38,2.79]
[1761477650005,2.51,195.58,195.39,2.79]
[1761477650206,2.51,195.58,195.41,2.79]
[1761477650399,2.51,195.58,195.42,2.79]
[1761477651903,2.51,195.57,195.42,2.79]
[1761477656209,2.51,195.59,195.42,2.79]
[1761477656403,2.51,195.59,195.39,2.4]
[1761477656404,2.51,195.59,195.44,2.79]
[1761477656613,2.51,195.59,195.46,2.79]
[1761477658019,2.51,195.59,195.43,2.79]
[1761477658211,2.51,195.57,195.37,2.79]
[1761477658522,2.51,195.56,195.37,2.79]
[1761477659121,2.51,195.55,195.37,2.79]
[1761477659916,2.51,195.54,195.37,2.79]
[1761477660113,2.51,195.54,195.3,2.79]
[1761477660309,2.51,195.52,195.3,2.79]
[1761477660818,2.51,195.51,195.3,2.79]
[1761477661021,2.51,195.5,195.3,2.79]
[1761477663118,2.51,195.49,195.3,2.79]
[1761477663319,7.25335151,195.47,195.3,2.79]
[1761477663510,2.51,195.45,195.3,2.79]
[1761477663713,2.51,195.44,195.3,2.79]
[1761477664924,2.51,195.44,195.26,2.64]
[1761477665928,2.51,195.43,195.26,2.64]
[1761477666628,2.51,195.42,195.26,2.64]
[1761477666814,2.51,195.41,195.26,2.64]
[1761477667724,2.51,195.4,195.26,2.64]
[1761477668421,2.51,195.38,195.26,2.64]
[1761477668622,7.25335151,195.38,195.26,2.64]
[1761477668820,2.51,195.37,195.26,2.64]
[1761477669026,2.51,195.36,195.26,2.64]
[1761477669621,2.51,195.35,195.26,2.64]
[1761477669933,2.51,195.34,195.19,2.6]
[1761477670819,2.51,195.33,195.19,2.6]
[1761477671816,2.51,195.32,195.19,2.6]
[1761477672024,2.51,195.36,195.19,2.6]
[1761477672327,6.90848106,195.36,195.19,2.6]
[1761477672527,2.51,195.36,195.19,2.6]
[1761477674122,2.51,195.36,195.18,204.78]
[1761477674123,2.51,195.36,195.21,2.6]
[1761477675036,2.51,195.36,195.23,2.6]
[1761477678839,2.51,195.36,195.17,2.6]
[1761477679734,4.74335151,195.36,195.17,2.6]
[1761477679937,2.51,195.34,195.17,2.6]
[1761477680129,2.51,195.33,195.17,2.6]
[1761477680333,2.51,195.32,195.17,2.6]
[1761477680735,2.51,195.31,195.17,2.6]
[1761477681232,2.51,195.29,195.14,2.6]
[1761477681434,2.51,195.28,195.14,2.6]
[1761477681630,2.51,195.27,195.14,2.6]
[1761477696757,2.51,195.31,195.14,2.6]
[1761477697051,2.51,195.31,195.14,15.36]
[1761477697252,2.51,195.31,195.15,2.6]
[1761477698461,2.51,195.31,195.15,17.96]
[1761477698756,2.51,195.31,195.16,2.83]
[1761477699352,2.51,195.31,195.08,62.44]
[1761477699353,2.51,195.31,195.18,2.83]
[1761477702659,2.51,195.3,195.18,2.83]
[1761477702860,6.29372749,195.3,195.18,2.83]
[1761477703052,3.78372749,195.29,195.18,2.83]
[1761477703248,2.51,195.29,195.18,2.83]
[1761477703449,10.78921327,195.29,195.18,2.83]
[1761477703653,10.78921327,195.28,195.2,2.83]
[1761477703862,2.51,195.28,195.2,2.83]
[1761477704962,2.51,195.27,195.2,2.83]
[1761477705663,2.51,195.26,195.19,0.59]
[1761477705859,6.30321022,195.26,195.19,0.59]
[1761477706057,2.51,195.27,195.19,0.59]
[1761477706460,2.51,195.26,195.19,0.59]
[1761477706656,2.51,195.25,195.19,0.59]
[1761477706860,3.79705698,195.25,195.19,0.59]
[1761477707064,2.51,195.24,195.19,0.59]
[1761477707754,2.51,195.23,195.19,0.59]
[1761477707956,2.51,195.22,195.19,0.59]
[1761477709565,3.83211223,195.21,195.19,0.59]
[1761477709867,2.51,195.2,195.19,0.59]
[1761477710857,2.51,195.2,195.13,2.83]
[1761477710858,2.51,195.19,195.13,2.83]
[1761477711061,2.51,195.18,195.13,2.83]
[1761477712460,6.34451626,195.18,195.13,2.83]
[1761477712765,2.51,195.18,195.13,2.83]
[1761477713968,2.51,195.18,195.07,2.83]
[1761477715370,2.51,195.16,195.07,2.83]
[1761477719678,2.51,195.21,195.07,2.83]
[1761477721368,6.34282489,195.21,195.07,2.83]
[1761477721574,2.51,195.21,195.07,2.83]
[1761477722677,2.51,195.21,195.08,62.0]
[1761477722877,2.51,195.21,195.09,2.84]
[1761477723077,3.8333874,195.24,195.09,2.84]
[1761477723078,6.3433874,195.24,195.09,2.84]
[1761477723579,3.8333874,195.23,195.09,2.84]
[1761477723780,2.51,195.24,195.09,2.84]
[1761477724176,2.51,195.24,195.1,2.84]
[1761477724989,2.51,195.23,195.1,2.84]
[1761477725276,6.3433874,195.22,195.1,2.84]
[1761477725482,2.51,195.2,195.1,2.84]
[1761477729782,3.8333874,195.2,195.07,2.71]
[1761477730087,2.51,195.18,195.07,2.71]
[1761477730283,2.51,195.17,195.07,2.71]
[1761477730481,3.8333874,195.17,195.07,2.71]
[1761477730689,2.51,195.16,195.07,2.71]
[1761477733783,2.51,195.16,195.06,145.02922089]
[1761477733990,2.51,195.16,195.07,2.71]
[1761477734883,2.51,195.15,195.07,2.71]
[1761477735089,2.51,195.15,195.02,37.76]
[1761477735390,2.51,195.14,195.03,2.71]
[1761477735591,2.51,195.13,195.03,2.71]
[1761477744096,2.51,195.16,195.03,2.71]
[1761477752391,2.51,195.16,195.04,2.71]
[1761477755295,2.51,195.15,195.04,2.71]
[1761477756494,9.15400414,195.2,195.04,2.71]
[1761477756495,2.51,195.18,195.04,2.71]
[1761477757297,2.51,195.18,195.05,2.71]
[1761477759602,2.51,195.18,195.04,15.36]
[1761477759603,2.51,195.18,195.07,2.8]
[1761477764508,2.51,195.22,195.07,2.8]
[1761477764898,6.34688623,195.22,195.07,2.8]
[1761477765097,2.51,195.22,195.07,18.16]
[1761477765407,2.51,195.22,195.08,2.8]
[1761477766006,2.51,195.21,195.08,2.8]
[1761477766707,2.51,195.21,195.1,2.8]
[1761477766902,2.51,195.21,195.12,2.8]
[1761477767303,2.51,195.26,195.12,2.8]
[1761477767607,2.51,195.25,195.12,2.8]
[1761477771002,8.26129226,195.29,195.12,2.8]
[1761477771208,2.51,195.24,195.12,2.8]
[1761477774202,2.51,195.27,195.12,2.8]
[1761477775712,2.51,195.27,195.12,18.16]
[1761477776006,2.51,195.27,195.13,2.8]
[1761477776916,2.51,195.27,195.14,62.0]
[1761477777116,2.51,195.27,195.15,2.8]
[1761477779713,2.51,195.27,195.16,2.8]
[1761477780519,2.51,195.27,195.18,2.8]
[1761477781419,2.51,195.27,195.19,38.04]
[1761477781620,2.51,195.27,195.18,2.8]
[1761477782317,2.52,195.3,195.18,2.8]
[1761477783927,2.52,195.3,195.19,62.0]
[1761477784122,2.52,195.3,195.2,2.86]
[1761477793538,2.52,195.39,195.21,2.8]
[1761477793722,2.52,195.38,195.21,2.8]
[1761477795430,2.52,195.38,195.23,2.8]
[1761477795623,2.52,195.38,195.24,2.8]
[1761477796438,2.52,195.37,195.24,2.8]
[1761477805837,2.52,195.37,195.26,2.8]
[1761477806640,2.52,195.41,195.26,2.8]
[1761477807141,2.52,195.41,195.27,62.12]
[1761477807340,2.52,195.41,195.24,2.8]
[1761477807534,2.52,195.41,195.28,62.12]
[1761477807738,2.52,195.4,195.28,64.92]
[1761477808042,2.52,195.39,195.29,2.8]
[1761477808648,2.52,195.39,195.24,2.8]
[1761477808849,2.52,195.39,195.26,2.8]
[1761477809036,2.52,195.38,195.26,2.8]
[1761477809440,2.52,195.37,195.26,2.8]
[1761477810752,2.52,195.36,195.26,2.8]
[1761477815359,2.52,195.36,195.26,64.92]
[1761477815761,3.62972602,195.38,195.29,2.8]
[1761477816063,2.52,195.48,195.34,2.8]
[1761477816458,2.52,195.46,195.34,2.8]
[1761477823468,2.51,195.44,195.34,2.8]
[1761477824669,4.75280079,195.5,195.34,2.8]
[1761477824670,2.51,195.43,195.34,2.8]
[1761477832080,64.99,195.42,195.34,2.8]
[1761477832977,2.51,195.48,195.34,2.8]
[1761477833174,2.51,195.46,195.35,2.71]
[1761477834071,14.97,195.47,195.35,2.71]
[1761477835773,4.75280079,195.52,195.35,2.71]
[1761477835968,62.48,195.51,195.35,2.71]
[1761477837981,4.75280079,195.52,195.35,2.71]
[1761477838283,62.48,195.51,195.35,2.71]
[1761477840385,4.75280079,195.53,195.35,2.71]
[1761477840584,62.46,195.5,195.35,2.71]
[1761477840773,4.75280079,195.53,195.35,2.71]
[1761477841180,62.42,195.52,195.36,2.71]
[1761477841379,4.75280079,195.53,195.36,2.71]
[1761477841582,62.42,195.52,195.36,2.71]
[1761477843990,4.75280079,195.53,195.36,2.71]
[1761477844294,62.4,195.52,195.36,2.71]
[1761477845393,4.75280079,195.54,195.36,2.71]
[1761477845591,62.4,195.53,195.37,2.62]
[1761477845983,4.75280079,195.54,195.37,2.62]
[1761477846186,62.4,195.53,195.38,2.62]
[1761477846386,62.4,195.52,195.39,2.62]
[1761477846691,62.4,195.51,195.39,2.62]
[1761477847383,4.75280079,195.57,195.39,2.62]
[1761477847583,62.4,195.56,195.39,2.62]
[1761477847886,62.38,195.55,195.39,2.62]
[1761477848091,62.38,195.54,195.39,2.62]
[1761477848994,4.75280079,195.55,195.39,2.62]
[1761477849195,62.38,195.54,195.39,2.62]
[1761477849892,4.75280079,195.56,195.39,2.62]
[1761477850193,62.38,195.55,195.39,2.62]
[1761477852892,4.75280079,195.56,195.39,2.62]
[1761477853091,62.36,195.54,195.39,2.62]
[1761477854396,62.34,195.53,195.39,2.62]
[1761477855508,62.32,195.52,195.39,2.62]
[1761477857399,204.68,195.61,195.39,2.62]
[1761477857599,62.34,195.6,195.39,2.62]
[1761477857800,4.77248081,195.55,195.39,2.62]
[1761477858796,62.38,195.54,195.39,2.62]
[1761477860299,62.38,195.54,195.4,2.71]
[1761477861800,4.77248081,195.55,195.4,2.71]
[1761477862202,62.34,195.54,195.4,2.71]
[1761477863300,4.77248081,195.56,195.4,2.71]
[1761477863605,62.34,195.55,195.42,2.71]
[1761477865000,62.34,195.55,195.44,2.71]
[1761477866107,4.77248081,195.58,195.44,2.71]
[1761477866400,62.32,195.57,195.44,2.71]
[1761477870409,62.28,195.56,195.44,2.71]
[1761477871696,62.28,195.55,195.44,2.71]
[1761477872508,4.77248081,195.59,195.44,2.71]
[1761477872708,62.28,195.58,195.44,2.71]
[1761477873404,4.77248081,195.61,195.44,2.71]
[1761477873608,10.24,195.63,195.49,2.71]
[1761477874812,4.77248081,195.66,195.49,2.71]
[1761477875004,10.66,195.65,195.49,2.71]
[1761477875211,4.77248081,195.67,195.49,2.71]
[1761477875404,15.2,195.66,195.49,2.71]
[1761477876506,15.2,195.66,195.5,62.0]
[1761477876711,15.2,195.66,195.51,2.71]
[1761477878808,4.77248081,195.68,195.51,2.71]
[1761477879013,25.36,195.65,195.51,2.71]
[1761477881015,33.96,195.64,195.51,2.71]
[1761477881418,4.77248081,195.68,195.51,2.71]
[1761477881615,17.64,195.67,195.51,2.71]
[1761477881916,4.77248081,195.68,195.51,2.71]
[1761477882112,29.62,195.67,195.51,2.71]
[1761477882912,4.77248081,195.68,195.51,2.71]
[1761477883111,7.25333333,195.71,195.51,2.71]
[1761477883112,17.62,195.67,195.51,2.71]
[1761477883713,4.75835324,195.69,195.51,2.71]
[1761477883919,4.75835324,195.71,195.51,2.71]
[1761477884116,62.28,195.7,195.51,2.71]
[1761477884311,67.07835324,195.72,195.51,2.71]
[1761477885014,4.75835324,195.71,195.51,2.71]
[1761477885520,62.36,195.7,195.51,2.71]
[1761477885818,67.11835324,195.7,195.51,2.71]
[1761477886207,4.75835324,195.69,195.51,2.71]
[1761477887224,26.12,195.68,195.51,2.71]
[1761477887420,30.87835324,195.68,195.51,2.71]
[1761477887716,33.98,195.67,195.51,2.71]
[1761477889016,53.23835324,195.78,195.55,2.88]
[1761477889220,4.75835324,195.77,195.55,2.88]
[1761477889521,48.48,195.78,195.55,2.88]
[1761477889522,4.75835324,195.76,195.55,2.88]
[1761477890420,4.75835324,195.77,195.55,2.88]
[1761477891324,12.96,195.76,195.55,2.88]
[1761477891817,12.96,195.76,195.56,62.0]
[1761477892115,20.98347873,195.78,195.57,2.88]
[1761477892622,26.18,195.77,195.57,2.88]
[1761477894616,20.98347873,195.78,195.57,2.88]
[1761477894817,26.18,195.77,195.57,2.88]
[1761477897335,42.36,195.76,195.57,2.88]
[1761477898225,20.98347873,195.78,195.57,2.88]
[1761477898535,26.14,195.77,195.57,2.88]
[1761477901830,42.28,195.76,195.57,2.88]
[1761477902028,20.98347873,195.78,195.57,2.88]
[1761477902222,25.7,195.77,195.57,2.88]
[1761477903834,37.52,195.77,195.59,2.66]
[1761477904931,30.56,195.77,195.59,2.66]
[1761477905132,0.88946824,195.81,195.59,2.66]
[1761477905327,7.98,195.8,195.59,2.66]
[1761477905637,14.14,195.79,195.59,2.66]
[1761477906434,18.5,195.78,195.59,2.66]
[1761477907037,5.64782148,195.81,195.59,2.66]
[1761477907227,19.14,195.8,195.59,2.66]
[1761477908034,5.64782148,195.81,195.59,2.66]
[1761477908235,20.04,195.8,195.59,2.66]
[1761477908426,25.4,195.79,195.59,2.66]
[1761477910333,37.24,195.78,195.59,2.66]
[1761477910534,45.6,195.77,195.59,2.66]
[1761477911629,49.94,195.77,195.59,2.66]
[1761477911827,16.16295222,195.81,195.59,2.66]
[1761477912033,19.28,195.8,195.59,2.66]
[1761477912738,16.16295222,195.81,195.59,2.66]
[1761477912929,29.1,195.8,195.59,2.66]
[1761477913132,0.88946824,195.81,195.59,2.66]
[1761477913342,8.5,195.8,195.59,2.66]
[1761477913737,19.88630799,195.83,195.59,2.66]
[1761477913939,10.7,195.82,195.59,2.66]
[1761477914237,10.7,195.82,195.6,2.88]
[1761477916436,15.12795475,195.83,195.6,2.88]
[1761477916631,19.16,195.82,195.6,2.88]
[1761477916832,22.02,195.82,195.6,2.88]
[1761477917134,22.02,195.82,195.62,2.88]
[1761477918237,4.75835324,195.83,195.62,2.88]
[1761477918444,26.0,195.82,195.62,2.88]
[1761477919036,42.06,195.83,195.62,2.88]
[1761477919239,4.75835324,195.85,195.62,2.88]
[1761477919542,8.92,195.84,195.62,2.88]
[1761477920544,8.92,195.84,195.63,62.0]
[1761477920742,8.92,195.84,195.64,2.88]
[1761477921636,4.75835324,195.86,195.64,2.88]
[1761477921841,14.78,195.84,195.64,2.88]
[1761477925039,18.9,195.84,195.64,2.88]
[1761477925944,20.30053162,195.86,195.64,2.88]
[1761477926147,32.76,195.85,195.64,2.88]
[1761477926446,43.6,195.85,195.64,2.88]
[1761477928141,4.75835324,195.86,195.64,2.88]
[1761477928543,12.7,195.85,195.64,2.88]
[1761477929143,4.75835324,195.86,195.64,2.88]
[1761477929456,34.17835324,195.86,195.64,2.88]
[1761477929644,4.75835324,195.86,195.64,2.88]
[1761477929843,44.56,195.86,195.64,2.88]
[1761477930348,44.56,195.86,195.65,2.88]
[1761477931149,49.31835324,195.86,195.65,2.88]
[1761477931849,4.75835324,195.86,195.65,2.88]
[1761477932148,51.35835324,195.86,195.65,2.88]
[1761477932342,52.75835324,195.86,195.65,2.88]
[1761477932539,53.75835324,195.86,195.65,2.88]
[1761477933150,4.75835324,195.86,195.66,2.88]
[1761477933452,49.68,195.85,195.66,2.88]
[1761477934254,4.75835324,195.86,195.66,2.88]
[1761477934548,61.1,195.85,195.66,2.88]
[1761477935151,65.85835324,195.85,195.66,2.88]
[1761477936344,61.1,195.85,195.66,2.88]
[1761477937442,62.26,195.84,195.66,2.88]
[1761477938148,4.75835324,195.86,195.66,2.88]
[1761477938350,62.24,195.84,195.66,2.88]
[1761477939051,4.75835324,195.86,195.66,2.88]
[1761477939253,62.22,195.85,195.67,2.65]
[1761477941854,4.75835324,195.86,195.67,2.65]
[1761477942055,62.2,195.85,195.67,2.65]
[1761477943160,62.2,195.85,195.68,2.65]
[1761477945454,66.95835324,195.85,195.68,2.65]
[1761477947258,4.75835324,195.84,195.68,2.65]
[1761477947854,66.95835324,195.85,195.68,2.65]
[1761477948055,62.2,195.85,195.69,2.65]
[1761477949253,4.75835324,195.86,195.7,2.65]
[1761477949453,62.14,195.85,195.69,6.32262827]
[1761477949754,4.75835324,195.87,195.71,2.65]
[1761477949954,66.89835324,195.87,195.71,2.65]
[1761477950148,4.75835324,195.87,195.71,2.65]
[1761477950353,66.89835324,195.87,195.71,2.65]
[1761477951351,4.75835324,195.87,195.71,2.65]
[1761477952758,4.75835324,195.87,195.73,2.65]
[1761477954253,4.75835324,195.86,195.73,2.65]
[1761477955861,4.75835324,195.87,195.73,2.65]
[1761477960771,39.78330775,195.9,195.73,2.65]
[1761477961064,4.77464414,195.88,195.74,2.65]
[1761477967666,4.77464414,195.89,195.74,2.65]
[1761477968266,4.77464414,195.89,195.75,2.72]
[1761477969868,4.77464414,195.9,195.75,2.72]
[1761477970073,4.77464414,195.91,195.78,2.69]
[1761477970274,4.77464414,195.92,195.78,2.69]
[1761477971974,4.77464414,195.91,195.78,2.69]
[1761477972675,4.77464414,195.92,195.78,2.69]
[1761477973179,4.77464414,195.93,195.78,2.69]
[1761477976477,4.77464414,195.92,195.78,2.69]
[1761477976980,41.27464414,195.92,195.78,2.69]
[1761477977374,4.77464414,195.92,195.78,2.69]
[1761477977580,58.39464414,195.92,195.78,2.69]
[1761477979282,66.89464414,195.92,195.78,2.69]
[1761477979778,62.12,195.92,195.78,2.69]
[1761477980389,66.89464414,195.92,195.78,2.69]
[1761477981392,4.77464414,195.91,195.78,2.69]
[1761477982194,66.89464414,195.92,195.78,2.69]
[1761477983886,62.1,195.91,195.78,2.69]
[1761477984294,66.87464414,195.91,195.78,2.69]
[1761477984596,16.87464414,195.91,195.78,2.69]
[1761477986398,12.1,195.91,195.78,2.69]
[1761477986994,4.77464414,195.92,195.78,2.69]
[1761477988096,32.17464414,195.93,195.78,2.69]
[1761477988296,4.77464414,195.93,195.78,2.69]
[1761477989292,4.77464414,195.94,195.78,2.69]
[1761477989798,4.77464414,195.96,195.8,2.69]
[1761477991397,4.77464414,195.97,195.8,2.69]
[1761477992395,20.4320723,195.97,195.8,2.69]
[1761477992596,4.77464414,195.97,195.8,2.69]
[1761477992899,4.77464414,195.96,195.8,2.69]
[1761477994003,4.77464414,195.97,195.81,2.69]
[1761477996002,82.50212504,195.98,195.81,2.69]
[1761477997502,4.77464414,195.97,195.81,2.69]
[1761477998099,4.77464414,195.97,195.82,2.69]
[1761477998496,4.77464414,196.01,195.84,2.69]
[1761477998902,4.77464414,196.0,195.84,2.69]
[1761477999103,4.77464414,195.98,195.84,2.69]
[1761477999505,4.77464414,195.97,195.8,2.69]
[1761477999705,4.77464414,195.94,195.8,2.69]
[1761478000006,4.55138185,195.93,195.8,2.69]
[1761478000198,4.55138185,195.92,195.8,2.69]
[1761478000399,4.55138185,195.91,195.8,2.69]
[1761478000599,4.55138185,195.9,195.8,2.69]
[1761478000799,4.55138185,195.89,195.8,2.69]
[1761478001008,4.55138185,195.93,195.8,2.69]
[1761478001301,4.55138185,195.92,195.8,2.69]
[1761478001511,4.55138185,195.91,195.8,2.69]
[1761478001802,4.55138185,195.9,195.8,2.69]
[1761478002006,4.55138185,195.92,195.77,207.39313709]
[1761478002202,4.55138185,195.91,195.78,2.69]
[1761478002503,4.55138185,195.9,195.78,2.69]
[1761478002708,4.55138185,195.89,195.78,2.69]
[1761478003005,4.55138185,195.91,195.78,2.69]
[1761478003206,4.55138185,195.9,195.78,2.69]
[1761478003402,4.55138185,195.89,195.79,3.28]
[1761478003602,4.55138185,195.88,195.79,3.28]
[1761478003801,4.55138185,195.9,195.79,3.28]
[1761478004003,4.55138185,195.89,195.79,3.28]
[1761478004201,4.55138185,195.88,195.79,3.28]
[1761478004406,4.55138185,195.9,195.79,3.28]
[1761478004598,4.55138185,195.89,195.79,3.28]
[1761478004804,4.55138185,195.88,195.79,3.28]
[1761478005106,4.55138185,195.9,195.79,3.28]
[1761478005299,4.55138185,195.89,195.79,3.28]
[1761478005501,4.55138185,195.88,195.79,3.28]
[1761478005702,4.55138185,195.91,195.79,3.28]
[1761478005909,4.55138185,195.9,195.79,3.28]
[1761478006110,4.55138185,195.89,195.79,3.28]
[1761478006313,4.55138185,195.91,195.79,3.28]
[1761478006507,4.55138185,195.9,195.79,3.28]
[1761478006713,4.55138185,195.89,195.79,3.28]
[1761478007015,4.55138185,195.88,195.79,3.28]
[1761478007207,4.55138185,195.9,195.79,3.28]
[1761478007400,4.55138185,195.89,195.79,3.28]
[1761478007606,4.55138185,195.9,195.79,3.28]
[1761478007806,4.55138185,195.89,195.79,3.28]
[1761478008009,4.55138185,195.91,195.79,3.28]
[1761478008311,4.55138185,195.9,195.79,3.28]
[1761478008501,4.55138185,195.89,195.79,3.28]
[1761478008703,4.55138185,195.91,195.79,3.28]
[1761478008913,4.55138185,195.9,195.79,3.28]
[1761478009114,4.55138185,195.91,195.79,3.28]
[1761478009310,4.55138185,195.93,195.81,2.69]
[1761478009614,4.55138185,195.95,195.81,2.69]
[1761478009812,4.55138185,195.94,195.81,2.69]
[1761478010015,4.55138185,195.95,195.81,2.69]
[1761478010211,9.32602599,195.97,195.81,2.69]
[1761478010417,4.55138185,195.96,195.82,2.69]
[1761478010909,4.77464414,195.97,195.82,2.69]
[1761478011307,4.77464414,195.97,195.84,2.69]
[1761478011903,9.02373598,195.97,195.84,2.69]
[1761478012215,4.24909184,195.96,195.84,2.69]
[1761478012416,4.77464414,195.97,195.84,2.69]
[1761478013310,4.24909184,195.97,195.84,2.69]
[1761478013615,4.77464414,195.97,195.84,2.69]
[1761478014307,9.02373598,195.97,195.84,2.69]
[1761478014508,4.24909184,195.96,195.84,2.69]